fUSD/lending_fUSD_20240426
["ID","MTS","AMOUNT","RATE_DAILY","PERIOD"]
[323596614,1714101054564,-537.56,0.00011506,2]
[323596615,1714101054573,-947.56,0.00011506,2]
[323596616,1714101054582,-876.74,0.00011506,2]
[323596617,1714101054591,-449.41879651,0.00011506,2]
[323596618,1714101054600,-500.0,0.00011506,2]
[323596619,1714101054609,-3228.01,0.00011506,2]
[323596620,1714101054618,-500.0,0.00011506,2]
[323596621,1714101054627,-500.0,0.00011506,2]
[323596622,1714101054636,-500.0,0.00011506,2]
[323596623,1714101054644,-624.85,0.00011506,2]
[323596624,1714101054654,-1203.95,0.00011506,2]
[323596625,1714101054663,-2525.76,0.00011506,2]
[323596626,1714101054672,-500.0,0.00011506,2]
[323596627,1714101054681,-500.0,0.00011506,2]
[323596628,1714101054690,-1366.38,0.00011506,2]
[323596629,1714101054698,-4023.49,0.00011506,2]
[323596630,1714101054708,-1704.59,0.00011506,2]
[323596631,1714101054716,-651.42,0.00011506,2]
[323596632,1714101054725,-656.14,0.00011506,2]
[323596633,1714101054734,-500.0,0.00011506,2]
[323596634,1714101054744,-2567.61,0.00011506,2]
[323596635,1714101054756,-565.21,0.00011506,2]
[323596636,1714101054768,-561.96039122,0.00011506,2]
[323596637,1714101054779,-500.0,0.00011506,2]
[323596638,1714101054791,-4723.15,0.00011506,2]
[323596639,1714101054804,-500.0,0.00011506,2]
[323596640,1714101054815,-768.71,0.00011506,2]
[323596641,1714101054825,-773.01,0.00011506,2]
[323596642,1714101054837,-500.0,0.00011506,2]
[323596643,1714101054848,-500.0,0.00011506,2]
[323596644,1714101054859,-500.0,0.00011506,2]
[323596645,1714101054871,-500.0,0.00011506,2]
[323596646,1714101054883,-500.0,0.00011506,2]
[323596647,1714101054895,-730.1,0.00011506,2]
[323596648,1714101054907,-500.0,0.00011506,2]
[323596649,1714101054919,-500.0,0.00011506,2]
[323596650,1714101054929,-500.0,0.00011506,2]
[323596651,1714101054941,-500.0,0.00011506,2]
[323596652,1714101054953,-500.0,0.00011506,2]
[323596653,1714101054965,-804.58,0.00011506,2]
[323596654,1714101054976,-2599.73,0.00011506,2]
[323596655,1714101054987,-2403.09,0.00011506,2]
[323596656,1714101054998,-500.0,0.00011506,2]
[323596657,1714101055010,-500.0,0.00011506,2]
[323596658,1714101055021,-500.0,0.00011506,2]
[323596659,1714101055033,-987.48,0.00011506,2]
[323596660,1714101055044,-685.7,0.00011506,2]
[323596661,1714101055058,-1065.8,0.00011506,2]
[323596662,1714101055068,-500.0,0.00011506,2]
[323596663,1714101055078,-500.0,0.00011506,2]
[323596664,1714101055089,-1013.91,0.00011506,2]
[323596665,1714101055102,-1241.06,0.00011506,2]
[323596666,1714101055114,-500.0,0.00011506,2]
[323596667,1714101055125,-3064.47,0.00011506,2]
[323596668,1714101055137,-500.0,0.00011506,2]
[323596669,1714101055149,-12059.81,0.00011506,2]
[323596670,1714101055160,-702.14,0.00011506,2]
[323596671,1714101055171,-1078.25,0.00011506,2]
[323596672,1714101055183,-500.0,0.00011506,2]
[323596673,1714101055193,-500.0,0.00011506,2]
[323596674,1714101055204,-500.0,0.00011506,2]
[323596675,1714101055215,-521.46496761,0.00011506,2]
[323596676,1714101055227,-500.0,0.00011506,2]
[323596677,1714101055238,-247.21638447,0.00011506,2]
[323596678,1714101055250,-500.0,0.00011506,2]
[323596679,1714101055261,-500.0,0.00011506,2]
[323596680,1714101055274,-500.0,0.00011506,2]
[323596681,1714101055285,-500.0,0.00011506,2]
[323596682,1714101055297,-500.0,0.00011506,2]
[323596683,1714101055310,-825.28,0.00011506,2]
[323596684,1714101055321,-614.68,0.00011506,2]
[323596685,1714101055331,-500.0,0.00011506,2]
[323596686,1714101055342,-500.0,0.00011506,2]
[323596687,1714101055351,-1058.38,0.00011506,2]
[323596688,1714101055362,-500.0,0.00011506,2]
[323596689,1714101055373,-500.0,0.00011506,2]
[323596690,1714101055385,-500.0,0.00011506,2]
[323596691,1714101055396,-541.88,0.00011506,2]
[323596692,1714101055408,-500.0,0.00011506,2]
[323596693,1714101055418,-263.97035887,0.00011506,2]
[323596694,1714101055432,-500.0,0.00011506,2]
[323596695,1714101055444,-500.0,0.00011506,2]
[323596696,1714101055454,-5347.85,0.00011506,2]
[323596697,1714101055464,-2050.12346855,0.00011514,2]
[323596698,1714101055474,-4785.47508995,0.00011542,2]
[323596699,1714101055483,-150.0,0.00011577,2]
[323596700,1714101055494,-13434.60016069,0.0001158,2]
[323596701,1714101055505,-150.0,0.00011581,2]
[323596702,1714101055515,-150.0,0.00011588,2]
[323596703,1714101055526,-150.0,0.0001159,2]
[323596704,1714101055536,-150.0,0.00011592,2]
[323596705,1714101055547,-150.0,0.000116,2]
[323596706,1714101055560,-150.0,0.00011611,2]
[323596707,1714101055571,-150.0,0.00011612,2]
[323596708,1714101055582,-150.0,0.00011625,2]
[323596709,1714101055593,-150.0,0.00011627,2]
[323596710,1714101055604,-1394.0,0.00011628,2]
[323596711,1714101055615,-542.0,0.00011628,2]
[323596712,1714101055631,-1257.0,0.00011628,2]
[323596713,1714101055643,-1228.0,0.00011628,2]
[323596714,1714101055654,-810.197,0.00011628,2]
[323596715,1714101055666,-1864.872,0.00011628,2]
[323596716,1714101055676,-439.255,0.00011628,2]
[323596717,1714101055688,-612.456,0.00011628,2]
[323596718,1714101055698,-258.11,0.00011628,2]
[323596719,1714101055709,-3132.975,0.00011628,2]
[323596720,1714101055720,-150.641,0.00011628,2]
[323596721,1714101055731,-2446.0,0.00011628,2]
[323596722,1714101055742,-1478.191,0.00011628,2]
[323596723,1714101055752,-420.0,0.00011628,2]
[323596724,1714101055763,-150.492,0.00011628,2]
[323596725,1714101055773,-214.0,0.00011628,2]
[323596726,1714101055783,-1641.0,0.00011628,2]
[323596727,1714101055794,-445.02,0.00011628,2]
[323596728,1714101055808,-1145.08,0.00011628,2]
[323596729,1714101055818,-5750.227,0.00011628,2]
[323596730,1714101055829,-37836.163,0.00011628,2]
[323596731,1714101055840,-5927.58,0.00011628,2]
[323596732,1714101055851,-2719.957,0.00011628,2]
[323596733,1714101055862,-1056.0,0.00011628,2]
[323596734,1714101055873,-150.0,0.00011628,2]
[323596735,1714101055884,-150.0,0.00011629,2]
[323596736,1714101055895,-171.5,0.0001163,2]
[323596737,1714101055906,-150.0,0.00011631,2]
[323596738,1714101055917,-150.0,0.00011634,2]
[323596739,1714101055927,-150.0,0.00011638,2]
[323596740,1714101055938,-150.0,0.00011639,2]
[323596741,1714101055949,-150.0,0.00011643,2]
[323596742,1714101055960,-150.0,0.0001165,2]
[323596743,1714101055970,-150.0,0.00011656,2]
[323596744,1714101055981,-150.0,0.00011658,2]
[323596745,1714101055992,-150.0,0.00011662,2]
[323596746,1714101056003,-150.0,0.00011668,2]
[323596747,1714101056014,-4785.47508995,0.00011678,2]
[323596748,1714101056026,-204.36851064,0.0001168,2]
[323596749,1714101056038,-246.58960536,0.00011681,2]
[323596750,1714101056050,-500.0,0.00011686,2]
[323596751,1714101056062,-150.0,0.00011689,2]
[323596752,1714101056072,-150.0,0.00011692,2]
[323596753,1714101056082,-150.0,0.0001171,2]
[323596754,1714101056092,-150.0,0.0001171,2]
[323596755,1714101056101,-150.0,0.0001171,2]
[323596756,1714101056113,-150.0,0.00011714,2]
[323596757,1714101056124,-174.95900184,0.00011715,2]
[323596758,1714101056136,-150.0,0.00011718,2]
[323596759,1714101056146,-150.0,0.00011721,2]
[323596760,1714101056158,-150.0,0.00011722,2]
[323596761,1714101056170,-150.0,0.00011725,2]
[323596762,1714101056182,-150.0,0.00011728,2]
[323596763,1714101056194,-150.0,0.00011731,2]
[323596764,1714101056205,-150.0,0.00011731,2]
[323596765,1714101056217,-150.0,0.00011735,2]
[323596766,1714101056228,-150.0,0.00011742,2]
[323596767,1714101056239,-1500.0,0.00011748,2]
[323596768,1714101056250,-150.0,0.00011748,2]
[323596769,1714101056261,-171.5,0.0001175,2]
[323596770,1714101056272,-150.0,0.0001175,2]
[323596771,1714101056283,-150.0,0.00011758,2]
[323596772,1714101056296,-1072.21677181,0.0001176,2]
[323596773,1714101056308,-1002.22510435,0.0001176,2]
[323596774,1714101056319,-150.0,0.00011762,2]
[323596775,1714101056329,-150.0,0.00011765,2]
[323596776,1714101056339,-150.0,0.00011765,2]
[323596777,1714101056350,-150.0,0.00011768,2]
[323596778,1714101056360,-150.0,0.00011771,2]
[323596779,1714101056371,-150.0,0.00011775,2]
[323596780,1714101056382,-150.0,0.00011776,2]
[323596781,1714101056393,-150.0,0.00011776,2]
[323596782,1714101056404,-150.0,0.00011779,2]
[323596783,1714101056415,-798.0,0.0001178,2]
[323596784,1714101056426,-591.02,0.0001178,2]
[323596785,1714101056436,-500.0,0.0001178,2]
[323596786,1714101056447,-500.0,0.0001178,2]
[323596787,1714101056458,-500.0,0.0001178,2]
[323596788,1714101056468,-500.0,0.0001178,2]
[323596789,1714101056478,-500.0,0.0001178,2]
[323596790,1714101056489,-500.0,0.0001178,2]
[323596791,1714101056500,-712.16,0.0001178,2]
[323596792,1714101056511,-500.0,0.0001178,2]
[323596793,1714101056521,-658.06,0.0001178,2]
[323596794,1714101056532,-709.23,0.0001178,2]
[323596795,1714101056543,-500.0,0.0001178,2]
[323596796,1714101056553,-731.38,0.0001178,2]
[323596797,1714101056567,-500.0,0.0001178,2]
[323596798,1714101056578,-500.0,0.0001178,2]
[323596799,1714101056588,-573.96,0.0001178,2]
[323596800,1714101056601,-506.31322139,0.0001178,2]
[323596801,1714101056613,-500.0,0.0001178,2]
[323596802,1714101056626,-500.0,0.0001178,2]
[323596803,1714101056636,-585.36783473,0.0001178,2]
[323596804,1714101056648,-500.0,0.0001178,2]
[323596805,1714101056659,-689.55,0.0001178,2]
[323596806,1714101056671,-500.0,0.0001178,2]
[323596807,1714101056682,-500.0,0.0001178,2]
[323596808,1714101056693,-500.0,0.0001178,2]
[323596809,1714101056703,-660.44,0.0001178,2]
[323596810,1714101056714,-500.0,0.0001178,2]
[323596811,1714101056724,-500.0,0.0001178,2]
[323596812,1714101056735,-500.0,0.0001178,2]
[323596813,1714101056747,-500.0,0.0001178,2]
[323596814,1714101056758,-500.0,0.0001178,2]
[323596815,1714101056770,-500.0,0.0001178,2]
[323596816,1714101056781,-500.0,0.0001178,2]
[323596817,1714101056792,-500.0,0.0001178,2]
[323596818,1714101056803,-500.0,0.0001178,2]
[323596819,1714101056817,-488.24043394,0.0001178,2]
[323596820,1714101056828,-500.0,0.0001178,2]
[323596821,1714101056838,-500.0,0.0001178,2]
[323596822,1714101056850,-500.0,0.0001178,2]
[323596823,1714101056860,-500.0,0.0001178,2]
[323596824,1714101056871,-846.67,0.0001178,2]
[323596825,1714101056882,-500.0,0.0001178,2]
[323596826,1714101056894,-548.25,0.0001178,2]
[323596827,1714101056904,-500.0,0.0001178,2]
[323596828,1714101056915,-213.39787774,0.0001178,2]
[323596829,1714101056925,-500.0,0.0001178,2]
[323596830,1714101056936,-500.0,0.0001178,2]
[323596831,1714101056946,-500.0,0.0001178,2]
[323596832,1714101056956,-500.0,0.0001178,2]
[323596833,1714101056968,-502.32,0.0001178,2]
[323596834,1714101056978,-500.0,0.0001178,2]
[323596835,1714101056989,-500.0,0.0001178,2]
[323596836,1714101056999,-500.0,0.0001178,2]
[323596837,1714101057010,-500.0,0.0001178,2]
[323596838,1714101057021,-500.0,0.0001178,2]
[323596839,1714101057031,-840.3,0.0001178,2]
[323596840,1714101057042,-500.0,0.0001178,2]
[323596841,1714101057053,-500.0,0.0001178,2]
[323596842,1714101057066,-500.0,0.0001178,2]
[323596843,1714101057077,-500.0,0.0001178,2]
[323596844,1714101057087,-500.0,0.0001178,2]
[323596845,1714101057097,-589.71295824,0.0001178,2]
[323596846,1714101057107,-500.0,0.0001178,2]
[323596847,1714101057118,-549.34,0.0001178,2]
[323596848,1714101057128,-500.0,0.0001178,2]
[323596849,1714101057138,-500.0,0.0001178,2]
[323596850,1714101057148,-500.0,0.0001178,2]
[323596851,1714101057159,-500.0,0.0001178,2]
[323596852,1714101057169,-500.0,0.0001178,2]
[323596853,1714101057180,-500.0,0.0001178,2]
[323596854,1714101057190,-322.77907528,0.0001178,2]
[323596855,1714101057200,-500.0,0.0001178,2]
[323596856,1714101057210,-500.0,0.0001178,2]
[323596857,1714101057220,-500.0,0.0001178,2]
[323596858,1714101057230,-500.0,0.0001178,2]
[323596859,1714101057241,-500.0,0.0001178,2]
[323596860,1714101057251,-500.0,0.0001178,2]
[323596861,1714101057261,-508.3875555,0.0001178,2]
[323596862,1714101057271,-500.0,0.0001178,2]
[323596863,1714101057281,-655.82,0.0001178,2]
[323596864,1714101057292,-172.72787083,0.0001178,2]
[323596865,1714101057303,-500.0,0.0001178,2]
[323596866,1714101057316,-247.13772084,0.0001178,2]
[323596867,1714101057327,-500.0,0.0001178,2]
[323596868,1714101057338,-500.0,0.0001178,2]
[323596869,1714101057348,-500.0,0.0001178,2]
[323596870,1714101057358,-530.38,0.0001178,2]
[323596871,1714101057369,-509.0,0.0001178,2]
[323596872,1714101057380,-500.0,0.0001178,2]
[323596873,1714101057391,-500.0,0.0001178,2]
[323596874,1714101057401,-500.0,0.0001178,2]
[323596875,1714101057412,-500.0,0.0001178,2]
[323596876,1714101057423,-500.0,0.0001178,2]
[323596877,1714101057433,-500.0,0.0001178,2]
[323596878,1714101057444,-500.0,0.0001178,2]
[323596879,1714101057454,-500.0,0.0001178,2]
[323596880,1714101057464,-500.0,0.0001178,2]
[323596881,1714101057475,-944.49,0.0001178,2]
[323596882,1714101057486,-500.0,0.0001178,2]
[323596883,1714101057500,-500.0,0.0001178,2]
[323596884,1714101057513,-500.0,0.0001178,2]
[323596885,1714101057525,-500.0,0.0001178,2]
[323596886,1714101057536,-506.64283368,0.0001178,2]
[323596887,1714101057546,-500.0,0.0001178,2]
[323596888,1714101057558,-500.0,0.0001178,2]
[323596889,1714101057569,-605.08,0.0001178,2]
[323596890,1714101057581,-500.0,0.0001178,2]
[323596891,1714101057591,-500.0,0.0001178,2]
[323596892,1714101057604,-632.24,0.0001178,2]
[323596893,1714101057614,-616.17,0.0001178,2]
[323596894,1714101057624,-500.0,0.0001178,2]
[323596895,1714101057635,-232.17548197,0.0001178,2]
[323596896,1714101057649,-500.0,0.0001178,2]
[323596897,1714101057660,-574.72763451,0.0001178,2]
[323596898,1714101057670,-500.0,0.0001178,2]
[323596899,1714101057680,-500.0,0.0001178,2]
[323596900,1714101057690,-500.0,0.0001178,2]
[323596901,1714101057699,-296.42,0.0001178,2]
[323596902,1714101057710,-500.0,0.0001178,2]
[323596903,1714101057721,-298.12737284,0.0001178,2]
[323596904,1714101057731,-909.16,0.0001178,2]
[323596905,1714101057741,-1203.85012692,0.0001178,2]
[323596906,1714101057752,-500.0,0.0001178,2]
[323596907,1714101057763,-500.0,0.0001178,2]
[323596908,1714101057774,-500.0,0.0001178,2]
[323596909,1714101057783,-500.0,0.0001178,2]
[323596910,1714101057793,-500.0,0.0001178,2]
[323596911,1714101057806,-500.0,0.0001178,2]
[323596912,1714101057818,-500.0,0.0001178,2]
[323596913,1714101057829,-824.8,0.0001178,2]
[323596914,1714101057840,-500.0,0.0001178,2]
[323596915,1714101057851,-500.0,0.0001178,2]
[323596916,1714101057862,-500.0,0.0001178,2]
[323596917,1714101057872,-500.0,0.0001178,2]
[323596918,1714101057884,-500.0,0.0001178,2]
[323596919,1714101057895,-574.46,0.0001178,2]
[323596920,1714101057906,-500.0,0.0001178,2]
[323596921,1714101057916,-500.0,0.0001178,2]
[323596922,1714101057926,-500.0,0.0001178,2]
[323596923,1714101057936,-500.0,0.0001178,2]
[323596924,1714101057948,-725.46,0.0001178,2]
[323596925,1714101057958,-500.0,0.0001178,2]
[323596926,1714101057968,-500.0,0.0001178,2]
[323596927,1714101057978,-500.0,0.0001178,2]
[323596928,1714101057988,-506.51424637,0.0001178,2]
[323596929,1714101057999,-500.0,0.0001178,2]
[323596930,1714101058010,-500.0,0.0001178,2]
[323596931,1714101058020,-500.0,0.0001178,2]
[323596932,1714101058031,-500.0,0.0001178,2]
[323596933,1714101058042,-500.0,0.0001178,2]
[323596934,1714101058052,-500.0,0.0001178,2]
[323596935,1714101058063,-500.0,0.0001178,2]
[323596936,1714101058074,-500.0,0.0001178,2]
[323596937,1714101058085,-500.0,0.0001178,2]
[323596938,1714101058095,-704.22,0.0001178,2]
[323596939,1714101058505,-296.90931855,0.0001178,2]
[323596940,1714101058538,-500.0,0.0001178,2]
[323596941,1714101058558,-719.57,0.0001178,2]
[323596942,1714101058569,-698.03,0.0001178,2]
[323596943,1714101058579,-500.0,0.0001178,2]
[323596944,1714101058588,-500.0,0.0001178,2]
[323596945,1714101058598,-500.0,0.0001178,2]
[323596946,1714101058607,-500.0,0.0001178,2]
[323596947,1714101058615,-500.0,0.0001178,2]
[323596948,1714101058624,-500.0,0.0001178,2]
[323596949,1714101058634,-500.0,0.0001178,2]
[323596950,1714101058644,-500.0,0.0001178,2]
[323596951,1714101058653,-500.0,0.0001178,2]
[323596952,1714101058663,-500.0,0.0001178,2]
[323596953,1714101058672,-500.0,0.0001178,2]
[323596954,1714101058681,-751.29,0.0001178,2]
[323596955,1714101058691,-310.37269277,0.0001178,2]
[323596956,1714101058700,-500.0,0.0001178,2]
[323596957,1714101058709,-500.0,0.0001178,2]
[323596958,1714101058717,-500.0,0.0001178,2]
[323596959,1714101058727,-199.61320687,0.0001178,2]
[323596960,1714101058736,-500.0,0.0001178,2]
[323596961,1714101058746,-500.0,0.0001178,2]
[323596962,1714101058755,-500.0,0.0001178,2]
[323596963,1714101058764,-193.51245915,0.0001178,2]
[323596964,1714101058773,-500.0,0.0001178,2]
[323596965,1714101058783,-500.0,0.0001178,2]
[323596966,1714101058793,-520.213865,0.0001178,2]
[323596967,1714101058805,-500.0,0.0001178,2]
[323596968,1714101058815,-500.0,0.0001178,2]
[323596969,1714101058825,-500.0,0.0001178,2]
[323596970,1714101058834,-500.0,0.0001178,2]
[323596971,1714101058843,-500.0,0.0001178,2]
[323596972,1714101058853,-500.0,0.0001178,2]
[323596973,1714101058863,-500.0,0.0001178,2]
[323596974,1714101058872,-500.0,0.0001178,2]
[323596975,1714101058882,-500.0,0.0001178,2]
[323596976,1714101058892,-500.0,0.0001178,2]
[323596977,1714101058901,-500.0,0.0001178,2]
[323596978,1714101058911,-500.0,0.0001178,2]
[323596979,1714101058920,-705.92,0.0001178,2]
[323596980,1714101058930,-500.0,0.0001178,2]
[323596981,1714101058940,-500.0,0.0001178,2]
[323596982,1714101058949,-500.0,0.0001178,2]
[323596983,1714101058958,-500.0,0.0001178,2]
[323596984,1714101058968,-500.0,0.0001178,2]
[323596985,1714101058977,-500.0,0.0001178,2]
[323596986,1714101058987,-500.0,0.0001178,2]
[323596987,1714101058997,-586.56,0.0001178,2]
[323596988,1714101059007,-500.0,0.0001178,2]
[323596989,1714101059016,-500.0,0.0001178,2]
[323596990,1714101059025,-658.37,0.0001178,2]
[323596991,1714101059036,-500.0,0.0001178,2]
[323596992,1714101059045,-500.0,0.0001178,2]
[323596993,1714101059055,-500.0,0.0001178,2]
[323596994,1714101059066,-500.0,0.0001178,2]
[323596995,1714101059075,-500.0,0.0001178,2]
[323596996,1714101059084,-531.55,0.0001178,2]
[323596997,1714101059093,-730.41,0.0001178,2]
[323596998,1714101059102,-500.0,0.0001178,2]
[323596999,1714101059112,-500.0,0.0001178,2]
[323597000,1714101059121,-500.0,0.0001178,2]
[323597001,1714101059130,-500.0,0.0001178,2]
[323597002,1714101059139,-500.0,0.0001178,2]
[323597003,1714101059148,-500.0,0.0001178,2]
[323597004,1714101059158,-771.28,0.0001178,2]
[323597005,1714101059167,-512.43,0.0001178,2]
[323597006,1714101059176,-932.7,0.0001178,2]
[323597007,1714101059186,-516.43,0.0001178,2]
[323597008,1714101059196,-500.0,0.0001178,2]
[323597009,1714101059205,-500.0,0.0001178,2]
[323597010,1714101059214,-500.0,0.0001178,2]
[323597011,1714101059224,-911.55,0.0001178,2]
[323597012,1714101059233,-796.84,0.0001178,2]
[323597013,1714101059243,-549.72,0.0001178,2]
[323597014,1714101059253,-500.0,0.0001178,2]
[323597015,1714101059263,-500.0,0.0001178,2]
[323597016,1714101059272,-1129.75,0.0001178,2]
[323597017,1714101059282,-417.02,0.0001178,2]
[323597018,1714101059292,-648.0,0.0001178,2]
[323597019,1714101059302,-500.0,0.0001178,2]
[323597020,1714101059312,-500.0,0.0001178,2]
[323597021,1714101059323,-500.0,0.0001178,2]
[323597022,1714101059333,-500.0,0.0001178,2]
[323597023,1714101059342,-1711.45,0.0001178,2]
[323597024,1714101059352,-535.16952986,0.0001178,2]
[323597025,1714101059362,-500.0,0.0001178,2]
[323597026,1714101059372,-531.5,0.0001178,2]
[323597027,1714101059381,-500.0,0.0001178,2]
[323597028,1714101059390,-1184.98,0.0001178,2]
[323597029,1714101059400,-709.33,0.0001178,2]
[323597030,1714101059409,-500.0,0.0001178,2]
[323597031,1714101059419,-500.0,0.0001178,2]
[323597032,1714101059428,-500.0,0.0001178,2]
[323597033,1714101059437,-500.0,0.0001178,2]
[323597034,1714101059446,-500.0,0.0001178,2]
[323597035,1714101059456,-500.0,0.0001178,2]
[323597036,1714101059465,-671.29,0.0001178,2]
[323597037,1714101059475,-500.0,0.0001178,2]
[323597038,1714101059485,-500.0,0.0001178,2]
[323597039,1714101059494,-745.83,0.0001178,2]
[323597040,1714101059503,-500.0,0.0001178,2]
[323597041,1714101059513,-500.0,0.0001178,2]
[323597042,1714101059522,-744.69,0.0001178,2]
[323597043,1714101059532,-500.0,0.0001178,2]
[323597044,1714101059541,-500.0,0.0001178,2]
[323597045,1714101059551,-500.0,0.0001178,2]
[323597046,1714101059561,-500.0,0.0001178,2]
[323597047,1714101059571,-2591.1,0.0001178,2]
[323597048,1714101059581,-500.0,0.0001178,2]
[323597049,1714101059591,-704.85,0.0001178,2]
[323597050,1714101059600,-500.0,0.0001178,2]
[323597051,1714101059610,-3146.41,0.0001178,2]
[323597052,1714101059619,-500.0,0.0001178,2]
[323597053,1714101059628,-614.85,0.0001178,2]
[323597054,1714101059638,-851.6,0.0001178,2]
[323597055,1714101059647,-500.0,0.0001178,2]
[323597056,1714101059657,-4686.32,0.0001178,2]
[323597057,1714101059667,-1217.41,0.0001178,2]
[323597058,1714101059676,-500.0,0.0001178,2]
[323597059,1714101059685,-500.0,0.0001178,2]
[323597060,1714101059695,-500.0,0.0001178,2]
[323597061,1714101059704,-500.0,0.0001178,2]
[323597062,1714101059713,-528.85,0.0001178,2]
[323597063,1714101059723,-666.49,0.0001178,2]
[323597064,1714101059733,-894.65,0.0001178,2]
[323597065,1714101059742,-500.0,0.0001178,2]
[323597066,1714101059752,-516.08,0.0001178,2]
[323597067,1714101059761,-500.0,0.0001178,2]
[323597068,1714101059771,-500.0,0.0001178,2]
[323597069,1714101059780,-500.0,0.0001178,2]
[323597070,1714101059790,-1043.24,0.0001178,2]
[323597071,1714101059800,-1377.96,0.0001178,2]
[323597072,1714101059814,-500.0,0.0001178,2]
[323597073,1714101059823,-500.0,0.0001178,2]
[323597074,1714101059833,-859.71,0.0001178,2]
[323597075,1714101059843,-500.0,0.0001178,2]
[323597076,1714101059854,-731.1,0.0001178,2]
[323597077,1714101059865,-500.0,0.0001178,2]
[323597078,1714101059875,-1100.89,0.0001178,2]
[323597079,1714101059885,-537.85,0.0001178,2]
[323597080,1714101059894,-500.0,0.0001178,2]
[323597081,1714101059904,-500.0,0.0001178,2]
[323597082,1714101059916,-883.47,0.0001178,2]
[323597083,1714101059927,-1248.83,0.0001178,2]
[323597084,1714101059936,-500.0,0.0001178,2]
[323597085,1714101059945,-307.34258871,0.0001178,2]
[323597086,1714101059955,-6484.7,0.0001178,2]
[323597087,1714101059965,-500.0,0.0001178,2]
[323597088,1714101059975,-500.0,0.0001178,2]
[323597089,1714101059985,-500.0,0.0001178,2]
[323597090,1714101059995,-500.0,0.0001178,2]
[323597091,1714101060005,-2034.2,0.0001178,2]
[323597092,1714101060014,-500.0,0.0001178,2]
[323597093,1714101060024,-500.0,0.0001178,2]
[323597094,1714101060034,-500.0,0.0001178,2]
[323597095,1714101060043,-500.0,0.0001178,2]
[323597096,1714101060053,-3417.97,0.0001178,2]
[323597097,1714101060064,-500.0,0.0001178,2]
[323597098,1714101060073,-934.31,0.0001178,2]
[323597099,1714101060083,-448.93979143,0.0001178,2]
[323597100,1714101060093,-1618.56,0.0001178,2]
[323597101,1714101060103,-500.0,0.0001178,2]
[323597102,1714101060113,-499.13855365,0.0001178,2]
[323597103,1714101060122,-2563.26,0.0001178,2]
[323597104,1714101060132,-537.56,0.0001178,2]
[323597105,1714101060142,-947.56,0.0001178,2]
[323597106,1714101060152,-876.74,0.0001178,2]
[323597107,1714101060161,-580.25283825,0.0001178,2]
[323597108,1714101060171,-3228.01,0.0001178,2]
[323597109,1714101060180,-500.0,0.0001178,2]
[323597110,1714101060189,-500.0,0.0001178,2]
[323597111,1714101060199,-500.0,0.0001178,2]
[323597112,1714101060208,-624.85,0.0001178,2]
[323597113,1714101060218,-1203.95,0.0001178,2]